Cogmind - Beta 14 @@@ ROGUE MODE // 2025.05.06 @ 00:16:48 Player: r@sin Result: Destroyed by G-47 Trooper with Particle Gun Performance ------------- Evolutions (0) 0 Regions Visited (2) 400 Robots Destroyed (22) 110 Value Destroyed (566) 566 Prototype IDs (0) 0 Alien Tech Used (0) 0 Bonus (0) 0 TOTAL SCORE: 1076 Bonus ------- None Cogmind --------- Core Integrity 0/250 Matter 290/300 Energy 98/100 System Corruption 2% Temperature Cool (9) Movement Core (50) Location -10/Mines Parts ------- > --- POWER (1) -------- (None) > --- PROPULSION (2) --- (None) > --- UTILITY (2) ------ (None) > --- WEAPON (2) ------- (None) > --- INVENTORY (5) ---- Ion Engine Light Treads Core Shielding EM Shotgun Medium Laser Peak State ------------ > --- POWER ------------ Ion Engine > --- PROPULSION ------- Light Treads Light Treads > --- UTILITY ---------- Improved Heat Sink Large Storage Unit > --- WEAPON ----------- EM Shotgun EM Shotgun > --- INVENTORY -------- Ion Engine Ion Engine Light Treads Improved Heat Sink Medium Storage Unit Weight Redist. System Seismic Detector Targeting Computer Core Shielding Medium Laser Particle Gun Light Assault Rifle Light Assault Rifle [Rating: 12] Favorites ----------- Power Ion Engine Engine Ion Engine Power Core Light Nuclear Core Propulsion Light Treads Treads Light Treads Utility Large Storage Unit Device Improved Heat Sink Storage Large Storage Unit Processor Signal Interpreter Protection Core Shielding Weapon Light Assault Rifle Energy Gun EM Shotgun Ballistic Gun Light Assault Rifle Launcher Rocket Launcher Build | -11 -10 -10 ------- Run | Yrd Mat Min Slots Evolved . | . . . Power . | . . . Propulsion . | . . . Utility . | . . . Weapon . | . . . Parts Attached 25 | 6 11 8 Power 5 | 1 3 1 Engine 4 | 1 2 1 Core 1 | . 1 . Reactor . | . . . Propulsion 5 | 2 2 1 Treads 5 | 2 2 1 Leg . | . . . Wheel . | . . . Hover . | . . . Flight . | . . . Utility 6 | 1 4 1 Device 1 | . . 1 Storage 2 | 1 1 . Processor 1 | . 1 . Hackware . | . . . Protection 2 | . 2 . Artifact . | . . . Weapon 9 | 2 2 5 Energy Gun 3 | . . 3 Energy Cannon . | . . . Ballistic Gun 5 | 2 2 1 Ballistic Cannon . | . . . Launcher 1 | . . 1 Special Weapon . | . . . Impact Weapon . | . . . Slashing Weapon . | . . . Piercing Weapon . | . . . Special Melee Weapon . | . . . Unidentified Prototypes . | . . . Parts Lost 7 | . 3 4 Power 2 | . 1 1 Propulsion 2 | . 1 1 Utility 2 | . 1 1 Weapon 1 | . . 1 Highest Loss Streak 2 | . 1 2 To Critical Strikes . | . . . Average Slot Usage (%) 92 | . 93 88 Engine 9 | . 8 13 Core 4 | . 5 . Treads 24 | . 25 20 Device 1 | . . 6 Storage 13 | . 14 13 Processor 8 | . 9 7 Protection 1 | . 1 . Energy Gun 1 | . . 10 Ballistic Gun 25 | . 28 14 Peak Build Rating 12 | 6 11 12 Average Rating 8 | 5 8 9 On Entrance 5 | . 6 9 Naked Turns 15 | . . 15 Heaviest Build 33 | 12 29 33 Greatest Support 40 | 40 40 40 Greatest Overweight (x) 3 | 3 1 1 Average Overweight (x) . | . . . Largest Inventory Capacity 15 | 8 15 15 Average Capacity 13 | 7 13 14 Most Carried 15 | 4 15 14 Average Carried 12 | 2 12 13 Final Capacity 15 | 8 15 5 Final Carried 14 | 4 14 5 Class Distribution -------------------- 71% | Mutant 28% | Scavenger-Mutant Dominant Class ---------------- Mutant | -10/Materials Scavenger-Mutant | -10/Mines Resources | -11 -10 -10 ----------- Run | Yrd Mat Min Matter Collected 709 | 178 436 95 Remotely . | . . . Salvage Created 795 | . 593 202 Parts 48 | . 40 8 Haulers Intercepted 2 | . 2 . Recyclers Shooed . | . . . Parts Field Recycled . | . . . Retrieved Matter . | . . . Parts Self-Destructed . | . . . Prevented . | . . . Kills | -11 -10 -10 ------- Run | Yrd Mat Min Combat Hostiles Destroyed 18 | . 14 4 Guns 17 | . 14 3 Classes Destroyed 5 | . 5 . Builder 1 | . 1 . Hauler 2 | . 2 . Watcher 1 | . 1 . Swarmer 5 | . 5 . Grunt 13 | . 9 4 Best Kill Streak 4 | . 4 2 Combat Bots Only 4 | . 4 2 Max Kills in Single Turn 1 | . 1 1 Gunslinging . | . . . Exploded . | . . . Melee . | . . . Uniques/NPCs Destroyed . | . . . Combat | -11 -10 -10 -------- Run | Yrd Mat Min Hostile Shots Fired 122 | . 84 38 Missed 30 | . 20 10 Damage Taken 1197 | . 664 533 Core 250 | . 118 132 Absorbed by Shields . | . . . Core Remaining (%) 100 | 100 . . Volleys Fired 90 | . 71 19 Largest 2 | . 2 2 Hottest 90 | . 40 90 Shots Fired 180 | . 143 37 Gun 180 | . 143 37 Cannon . | . . . Launcher . | . . . Special . | . . . Kinetic 162 | . 143 19 Thermal . | . . . Explosive . | . . . Electromagnetic 18 | . . 18 Robot Hit Streak 15 | . 7 15 Robot Miss Streak 6 | . 6 4 Penetration Max . | . . . Secondary Targets 2 | . 2 . Max Gunslinging Chain 1 | . 1 . Shots Hit Robots 103 | . 73 30 Core Hits 47 | . 35 12 Critical Kills . | . . . Critical Parts Destroyed 1 | . 1 . Critical Strikes 1 | . 1 . Destroy 1 | . 1 . Melee Attacks . | . . . Impact . | . . . Slashing . | . . . Piercing . | . . . Sneak Attacks . | . . . Combat Hostiles . | . . . Follow-up Attacks . | . . . Damage Inflicted 1010 | . 719 291 Guns 1005 | . 714 291 Cannons . | . . . Explosions . | . . . Melee . | . . . Ramming 5 | . 5 . Kinetic 809 | . 714 95 Thermal . | . . . Explosive . | . . . Electromagnetic 196 | . . 196 Impact . | . . . Slashing . | . . . Piercing . | . . . Highest Corruption 2 | . 2 2 Average Corruption 2 | . 2 2 Corruption Purged . | . . . Corruption Blocked . | . . . Effects 22 | . 17 5 Message Errors 6 | . 4 2 Matter Fused 5 | . 5 . Heat Flow Errors 3 | . 3 . Energy Discharges 3 | . 2 1 Parts Rejected 1 | . . 1 Data Loss (minor) 1 | . 1 . Data Loss (major) 2 | . 1 1 Misfires 1 | . 1 . Overload Shots . | . . . Overflow Damage . | . . . Projectiles . | . . . Explosions . | . . . Melee . | . . . Knockbacks . | . . . Impact . | . . . Kinetic . | . . . Secondary . | . . . Self-Inflicted Damage . | . . . Shots . | . . . Rammed . | . . . Targets Rammed 1 | . 1 . Kicked . | . . . Crushed 1 | . 1 . Highest Temperature 257 | . 257 32 Average Temperature 60 | . 71 12 Received Heat Transfer 489 | . 276 213 Siege Activations . | . . . Robots Corrupted 1 | . . 1 Combat Hostiles 1 | . . 1 Parts Fried 1 | . . 1 Impact Corruptions . | . . . Robots Melted . | . . . Combat Hostiles . | . . . Parts Melted . | . . . Heat Transferred . | . . . Parts Sabotaged . | . . . Parts Stolen . | . . . Parts Stripped . | . . . Power Chain Reactions . | . . . Alert | -11 -10 -10 ------- Run | Yrd Mat Min Peak Influence 200 | . 200 114 Initial 19 | . . 19 Average 55 | . 53 78 Maximum Alert Level 1 | . 1 . Low Security (%) 93 | 100 91 100 Level 1 6 | . 8 . Level 2 . | . . . Level 3 . | . . . Level 4 . | . . . Level 5 . | . . . High Security . | . . . Max Security . | . . . Squads Dispatched 4 | . 4 . Investigation 2 | . 2 . Extermination . | . . . Reinforcement 2 | . 2 . Assault . | . . . Garrison . | . . . Intercept . | . . . Searches Triggered . | . . . Construction Impeded . | . . . Haulers Reinforced . | . . . Active Scanning Responses . | . . . Cargo Convoy Interrupts . | . . . Stealth | -11 -10 -10 --------- Run | Yrd Mat Min Distress Signals 3 | . 3 . Communications Jammed . | . . . Distress Signals . | . . . Times Spotted 37 | . 28 9 Peak Tracking Total 5 | . 5 4 Tactical Retreats 4 | . 3 1 Traps | -11 -10 -10 ------- Run | Yrd Mat Min Traps Triggered 2 | . 2 . Indirectly . | . . . Trap Hack Attempts . | . . . Triggered . | . . . Disarmed . | . . . Reprogrammed . | . . . Reused . | . . . Traps Extracted . | . . . Installed . | . . . Triggered . | . . . Machines | -11 -10 -10 ---------- Run | Yrd Mat Min Machines Disabled 1 | . 1 . Max in Single Turn 1 | . 1 . Machines Repaired . | . . . Machines Dismantled . | . . . Machines Sabotaged . | . . . Overloaded Fab Kills . | . . . Hacking | -11 -10 -10 --------- Run | Yrd Mat Min Machines Accessed 7 | . 7 . Terminals 5 | . 5 . Fabricators . | . . . Repair Stations 1 | . 1 . Recycling Units 1 | . 1 . Scanalyzers . | . . . Garrison Access . | . . . Total Hacks 27 | . 27 . Successful 17 | . 17 . Failed 10 | . 10 . Catastrophic 1 | . 1 . Database Lockouts . | . . . Manual 9 | . 9 . Terminals 23 | . 23 . Fabricators . | . . . Repair Stations 3 | . 3 . Recycling Units 1 | . 1 . Scanalyzers . | . . . Garrison Access . | . . . Terminal Hacks 14 | . 14 . Record 8 | . 8 . Alert Level 2 | . 2 . Unreport Threat 1 | . 1 . Locate Traps 1 | . 1 . Assault Status 1 | . 1 . Recall Reinforcements 1 | . 1 . Fabricator Hacks . | . . . Repair Station Hacks 1 | . 1 . Scan Component 1 | . 1 . Recycling Unit Hacks 1 | . 1 . Retrieve Components 1 | . 1 . Scanalyzer . | . . . Garrison Access Hacks . | . . . Unauthorized Hacks 1 | . 1 . Terminals 1 | . 1 . Botnet 1 | . 1 . Fabricators . | . . . Repair Stations . | . . . Recycling Units . | . . . Scanalyzers . | . . . Garrison Access . | . . . Data Cores Recovered . | . . . Used . | . . . Hacking Detections 6 | . 6 . Full Trace Events 5 | . 5 . Feedback Events . | . . . Feedback Blocked . | . . . Robot Schematics Acquired . | . . . Robots Built . | . . . Authchips . | . . . Time . | . . . Total Robot Build Rating . | . . . Part Schematics Acquired . | . . . Parts Built . | . . . Authchips . | . . . Time . | . . . Total Part Build Rating . | . . . Parts Repaired . | . . . Time . | . . . Parts Recycled . | . . . Recycled Matter . | . . . Retrieved Matter . | . . . Retrieved Components 7 | . 7 . Parts Scanalyzed . | . . . Part Schematics Acquired . | . . . Parts Damaged . | . . . Bothacking | -11 -10 -10 ------------ Run | Yrd Mat Min Used RIF Installer . | . . . Robots Hacked . | . . . Non-combat . | . . . Combat . | . . . Robot Hacks Applied . | . . . Relay Couplers Released . | . . . Fabnet Peak Effective % . | . . . Robots Rewired . | . . . Allies Hacked . | . . . Hacks Repelled . | . . . Allies | -11 -10 -10 -------- Run | Yrd Mat Min Total Allies . | . . . Largest Group . | . . . Highest-Rated Group . | . . . Highest-Rated Ally . | . . . Total Orders . | . . . Ally Attacks . | . . . Total Damage . | . . . Kills . | . . . Allies Corrupted . | . . . Allies Melted . | . . . Intel | -11 -10 -10 ------- Run | Yrd Mat Min Robot Analysis Total . | . . . Derelict Logs Recovered 1 | . . 1 Drone Launches . | . . . Drone Recoveries . | . . . Exploration | -11 -10 -10 ------------- Run | Yrd Mat Min Turns Passed 1946 | 81 1544 321 Spaces Moved 955 | 48 755 152 Core 42 | 12 . 30 Treads 913 | 36 755 122 Legs . | . . . Wheels . | . . . Hover . | . . . Flight . | . . . Fastest Speed 50 | 50 160 50 Average Speed 170 | 145 173 164 Slowest Speed 240 | 200 240 240 Overloaded Moves . | . . . Propulsion Burnouts . | . . . Robots Hopped . | . . . Cave-ins Triggered . | . . . Exploration Rate (%) 45 | 4 93 38 Regions Visited 2 Branch Regions 1 Pre-discovered Areas . | . . . Known Exits Taken 1 | . 1 . Unknown Exits Taken 1 | 1 . . Scrap Searched 1 | . . 1 Spaces Dug . | . . . Terrain Destroyed . | . . . Melee . | . . . Projectile . | . . . AOE . | . . . Terrain Rammed . | . . . Walls Destroyed . | . . . Machines Disabled . | . . . Actions | -11 -10 -10 --------- Run | Yrd Mat Min Total 1112 | 57 868 187 Wait 18 | . 13 5 Move 953 | 47 754 152 Hop . | . . . Pick Up 18 | 4 12 2 Fast Attach 12 | 6 5 1 Attach 1 | . . 1 Detach 1 | . 1 . Swap 12 | . 6 6 Drop 6 | . 5 1 Fire 90 | . 71 19 Melee . | . . . Ram . | . . . Kick . | . . . Crush 1 | . 1 . Escape Stasis . | . . . Rewire . | . . . Trap . | . . . Miscellaneous . | . . . Route ------- -11/Scrapyard -10/Materials (discovered 4 exits: *Mat x3 / *Min) -10/Mines History --------- Turn | Location | Event 17 | -11/Scrapyard | Discovered new exit (range 15) 82 | -11/Scrapyard | Entered Materials 150 | -10/Materials | Discovered new exit (range 15) 316 | -10/Materials | Build established: Mutant 611 | -10/Materials | Discovered new exit (range 12) 628 | -10/Materials | Identified exit to Materials 1122 | -10/Materials | Discovered exit to Materials (range 5) 1542 | -10/Materials | Build established: Scavenger-Mutant 1612 | -10/Materials | Discovered new exit (range 10) 1625 | -10/Materials | Identified exit to Mines 1626 | -10/Materials | Entered Mines 1627 | -10/Mines | Assembled infested the area 1631 | -10/Mines | Core integrity fell below 50% 1731 | -10/Mines | Learned 2 Materials zone layouts 1871 | -10/Mines | Received a Rocket Launcher from a helpful Derelict 1929 | -10/Mines | Core integrity fell below 20% 1932 | -10/Mines | Released all parts (4) 1947 | -10/Mines | Destroyed by G-47 Trooper with Particle Gun Last Messages --------------- 01869_ CC-MWD(g): "Need to get rid of a swarm? Done. Need a big hole in the wall? Done." 01870_ CC-MWD(g): "Need a small hole in the wall? Leave that to the mining laser wimps, I say!" 01871_ CC-MWD(g): "Would you like a rocket launcher? I know I would if I were you, so I'm going to lend you mine." 01871_ CC-MWD(g) slips back into the shadows. 01873_ Acquired Rocket Launcher. 01886_ Acquired EM Shotgun. 01928_ T-07 Excavator destroyed. 01929_ Ion Engine destroyed. 01932_ Imp. Heat Sink destroyed. 01932_ U-05 Engineer builds a Wall. 01932_ Released Particle Gun. 01932_ Released Lgt. Treads. 01932_ Released Lrg. Storage Unit. 01932_ Released Rocket Launcher. 01934_ U-05 Engineer lays Concrete. Map ----- +----------------------------------------------------+ | ????????????????????????????????????????? | | ????????????????????????????????????????? | | ????????????????????????????????????????? | | ????????????????????????????????????????? | | ????????????????????????????????????????? | | ????????????????????????????????????????? | | ????????????????????????????????????????? | | ????????????????????????????????????????? | | ????????????????????????????????????????? | | ????????????????????????????????????????? | | ????????????????????????????????????????? | | ????????????????????????????????????????? | | ????????????????????????????????????????? | | ????????????????????????????????????????? | | ????????????????????????????????????????? | | ????????????????????????????????????????? | | ??????????????????#?????????????????????? | | ????????????????? #?????????????????????? | | ????????????????? #?????????????????????? | | ????????????????? #?????????????????????? | | ????????????????? #?????????????????????? | | ????????????????? #?????????????????????? | | ????????????????? #?????????????????????? | | ????????????????? #?????????????????????? | | ??# g ###### #?????????????????????? | | ??# g @ #?????????????????????? | | ??# k ##### ##?????????????????????? | | ???????????????# #?????????????????#????? | | ???????????????# #?????????????????# ### | | ???????????????# #?????????????????# | | ???????????????# #?????????????????###### | | ???????????????# #?????????????????????## | | ???????????????# ####??????????????????# | | ???????????????# #??????????????????# | | ???????????????#### #?????????####?????# | | ??????????????????# #????????## ##????## | | ??????????????????# ########## ##????# | | ??????????????????# ##??## | | ??????????????????########### #### | | ??????????????????????????# | | ?????????????????????###### | | ?????????????????????# # | | ?????????????????????# ### ## # | | ????????????????????????# ![* ## # | | ????????????????????????# ![=] ## | | ????????????????????????# [!! #### | | ???????????????????????# !! #??# | | ???????????????????????## #??## # | | ????????????????????????# #???#### | | ????????????????????????## #??????? | +----------------------------------------------------+ Best States ------------- Heat Dissipation 39 Energy Generation 14 Energy Capacity 250 Matter Stores 300 Matter Capacity 300 Sight Range 16 Terrain Scan Density 10 Armor Coverage 150 Core Shielding 20 Evasion (%) 50 Recoil Reduction 2 Item Schematics ----------------- None Robot Schematics ------------------ None Fabricated ------------ Nothing Alien Tech Used ----------------- None Achievements -------------- None Challenges ------------ None Game ------ Seed HypercooledEtherialNanosword Manual? 0 Play Time 00:16:03 Cumulative 31.8 hours Start 2025.05.05 @ 04:31:05 End 2025.05.06 @ 00:16:48 Sessions 3 Manual Loads 0 Difficulty Rogue Special Mode None Game No. 32 Rogue 23 Adventurer 9 Explorer 0 Win Type - Total 3 Types 2/0/1/0/0/0/0/0/0 Lore% 26 Gallery% 34 Achievement% 37 Wizard Run 0 Options --------- Layout 1 ASCII 0 Keyboard 1 Movement Vi Keybinds 0 Fullscreen 1 Font 24/Smallcaps Map View 50x35 Zoom Use 0% Tactical HUD 1 Map Filters NONE Filters NONE Steam 1 RUN: 308be3e3-0e9a-427e-ae0c-d63393e50266